fUSD/lending_fUSD_20240704
["ID","MTS","AMOUNT","RATE_DAILY","PERIOD"]
[331150032,1720107044795,-150.0,0.00014938,2]
[331150034,1720107044803,-300.0,0.0001494,2]
[331150036,1720107044813,-300.0,0.00014941,2]
[331150038,1720107044822,-150.0,0.00014949,2]
[331150039,1720107044831,-150.0,0.00014961,2]
[331150041,1720107044841,-150.0,0.00014968,2]
[331150044,1720107044851,-35742.82117363,0.00015,2]
[331150046,1720107044860,-1301.32466502,0.00015,2]
[331150048,1720107044870,-3968.79438035,0.00015,2]
[331150049,1720107044884,-622.93075988,0.00015,2]
[331150051,1720107044894,-1000.0,0.00015068,2]
[331150053,1720107044903,-549.03,0.00015068,2]
[331150055,1720107044913,-150.0,0.00015068,2]
[331150057,1720107044923,-420.0,0.00015228,2]
[331150059,1720107044933,-227.14852012,0.00015287,2]
[331150061,1720107044943,-187.35,0.00015457,2]
[331150064,1720107044954,-163.45,0.00015525,2]
[331150066,1720107044963,-29319.23499961,0.00015535,2]
[331150068,1720107044973,-705.53,0.00015545,2]
[331150069,1720107044982,-163.535333,0.00015616,2]
[331150071,1720107044992,-549.03,0.00015753,2]
[331150074,1720107045001,-167.04,0.00015831,2]
[331150076,1720107045011,-5993.97395663,0.00015842,2]
[331150077,1720107045022,-203.94857317,0.0001589,2]
[331150079,1720107045031,-300.0,0.000159,5]
[331150081,1720107045041,-556.49601533,0.00016,2]
[331150083,1720107045050,-454929.84207491,0.00016,2]
[331150085,1720107045062,-7290.45079688,0.00016,2]
[331150088,1720107045074,-1013.4946033,0.00016,2]
[331150090,1720107045085,-444.24779552,0.00016,2]
[331150091,1720107045139,-2491.29718569,0.00016,2]
[331150092,1720107045150,-40599.11855816,0.00016,2]
[331150094,1720107045161,-25245.90005368,0.00016,2]
[331150261,1720107047366,-728.79434185,0.00016,2]
[331150317,1720107252424,2235.54367464,0.00011,2]
[331150318,1720107271594,1264.71015021,6.94e-05,2]
[331150320,1720107284789,174195.0,0.00026,120]
[331150322,1720107342894,8198.88680476,0.000112,2]
[331150325,1720107419353,164040.09104574,0.000225,120]
[331150326,1720107419380,934588.17597536,0.000225,120]
[331150327,1720107419413,309963.30876439,0.000225,120]
[331150328,1720107430968,210.20055412,0.0001,2]
[331150330,1720107453632,7590.45601829,0.000112,2]
[331150331,1720107539911,2199.34342759,0.00011199,2]
[331150332,1720107539936,8328.23602285,0.00011199,2]
[331150333,1720107556126,1671.76397715,0.00011199,2]
[331150334,1720107556149,9633.11249386,0.00011199,2]
[331150335,1720107559932,366.88750614,0.00011199,2]
[331150336,1720107559954,5217.80377786,0.00011199,2]
[331150347,1720107580793,3845.0,0.00011199,2]
[331150352,1720107602625,937.19622214,0.000112,2]
[331150353,1720107602650,262.80377786,0.000112,2]
[331150354,1720107618159,2884.20773097,0.00011199,2]
[331150359,1720107696806,748.93,0.00010936,2]
[331150384,1720107753193,483.73593988,0.00011199,2]
[331150388,1720107765338,155.16151155,0.00011199,2]
[331150391,1720107774632,474.80233104,0.00011199,2]
[331150393,1720107777282,3393.88143666,0.00011199,2]
[331150396,1720107787655,266.10658237,0.00011199,2]
[331150402,1720107805353,246.53949848,0.00011199,2]
[331150406,1720107824590,155.54679538,0.00011199,2]
[331150407,1720107826988,367.11383788,0.00011199,2]
[331150412,1720107839978,158.25429544,0.00011199,2]
[331150413,1720107840394,211.67761017,0.00011199,2]
[331150414,1720107843454,191.23865232,0.00011199,2]
[331150415,1720107843478,10000.0,0.00011199,2]
[331150416,1720107843501,2992.40930054,0.00011199,2]
[331150419,1720107855148,202.47730064,0.00011199,2]
[331150427,1720107953606,300.36878012,0.00011199,2]
[331150428,1720107957368,218.38444305,0.00011199,2]
[331150431,1720107984299,3393.88143666,0.00011199,2]
[331150433,1720107996216,205.92304571,0.00011199,2]
[331150435,1720108004274,300.0,0.00011199,2]
[331150436,1720108022357,212.78021782,0.00011199,2]
[331150439,1720108031143,-5224.0379,0.00012202,2]
[331150440,1720108031166,-518.04242089,0.00012302,2]
[331150441,1720108031190,-155.0,0.00012302,2]
[331150442,1720108031210,-155.0,0.00012302,2]
[331150443,1720108031231,-524.36809456,0.00012302,2]
[331150444,1720108031252,-524.36809456,0.00012302,2]
[331150445,1720108031274,-33982.3173158,0.00012313,2]
[331150447,1720108041151,-250.0,0.00012614,2]
[331150448,1720108041182,-1000.0,0.00012629,2]
[331150449,1720108041207,-352.16,0.00012641,2]
[331150450,1720108041230,-150.0,0.00012671,2]
[331150451,1720108041252,-213.18,0.0001276,2]
[331150452,1720108041273,-150.0,0.00012767,2]
[331150453,1720108041294,-300.0,0.00012794,2]
[331150454,1720108041316,-1004.35,0.00012794,2]
[331150455,1720108041339,-167.57,0.00012795,2]
[331150456,1720108041359,-239.64,0.00012795,2]
[331150457,1720108041385,-181.05,0.00012795,2]
[331150458,1720108041406,-500.0,0.00012812,2]
[331150459,1720108041428,-23900.0,0.00012878,2]
[331150460,1720108041451,-250.0,0.0001289,2]
[331150461,1720108041472,-499.99,0.0001289,2]
[331150462,1720108041493,-380.9838,0.00013118,2]
[331150463,1720108041514,-473.99379803,0.00013128,2]
[331150464,1720108041535,-748.93,0.000132,2]
[331150465,1720108041557,-258.49555503,0.00013472,2]
[331150466,1720108041581,-7205.0171,0.00013476,2]
[331150467,1720108041607,-431.6368008,0.00013499,2]
[331150468,1720108041632,-1474.41828187,0.00013516,2]
[331150469,1720108046104,-298.91171813,0.00013516,2]
[331150470,1720108046127,-80.56007161,0.00013543,2]
[331150483,1720108163111,-250.0,0.00012671,2]
[331150484,1720108163134,-171.99,0.00012766,2]
[331150485,1720108163155,-171.99,0.00013099,2]
[331150486,1720108163175,-1055.23788443,0.00013128,2]
[331150487,1720108163195,-1287.33023709,0.00013128,2]
[331150488,1720108163216,-171.99,0.00013431,2]
[331150489,1720108163236,-2060.0,0.00013448,2]
[331150490,1720108163401,-18273.74281602,0.00013472,2]
[331150491,1720108163476,-1516.47322451,0.00013472,2]
[331150492,1720108163498,-400.0,0.000135,4]
[331150493,1720108163518,-1287.66973724,0.00013516,2]
[331150494,1720108163543,-381.63210733,0.00013543,2]
[331150495,1720108163563,-6046.947,0.00013584,2]
[331150496,1720108163582,-299.99,0.00013599,2]
[331150497,1720108163602,-212.3449,0.00013599,2]
[331150498,1720108163623,-800.0,0.000136,4]
[331150499,1720108163656,-773.86,0.00013699,2]
[331150500,1720108163680,-447.24,0.00013699,2]
[331150501,1720108163700,-1334.85,0.00013699,5]
[331150502,1720108163722,-163.45,0.00013699,2]
[331150503,1720108163743,-902.09,0.00013699,2]
[331150504,1720108163765,-1200.0,0.000137,5]
[331150505,1720108163791,-1600.0,0.000138,5]
[331150506,1720108163816,-185.91,0.00013858,2]
[331150507,1720108163836,-2218.0335,0.00013863,2]
[331150508,1720108163858,-3648.75943706,0.00013883,2]
[331150509,1720108163883,-821.80541052,0.00013889,2]
[331150510,1720108163904,-558.5111489,0.00013899,2]
[331150511,1720108163924,-192.46067517,0.00013899,2]
[331150512,1720108163945,-31022.7779,0.000139,2]
[331150513,1720108163964,-500.0,0.000139,2]
[331150514,1720108163984,-10243.9805,0.000139,2]
[331150515,1720108164004,-1547.98591501,0.000139,2]
[331150516,1720108164026,-2100.0,0.000139,5]
[331150517,1720108164049,-306.21102734,0.00013945,2]
[331150518,1720108164071,-330.85921288,0.00013945,2]
[331150519,1720108164091,-2000.0,0.00013973,3]
[331150520,1720108164111,-866.75884238,0.00013989,2]
[331150521,1720108164132,-717.89169523,0.00013989,2]
[331150522,1720108164152,-204.71326199,0.00013989,2]
[331150523,1720108164172,-497.54172022,0.00013989,2]
[331150524,1720108164192,-172.7696657,0.00013989,2]
[331150525,1720108164214,-203.94857317,0.0001399,2]
[331150526,1720108164234,-335.77,0.0001399,3]
[331150527,1720108164256,-167.88,0.0001399,3]
[331150528,1720108164277,-503.67,0.0001399,3]
[331150529,1720108164298,-1152.31990522,0.00013999,5]
[331150530,1720108164319,-2186.67797804,0.00013999,2]
[331150531,1720108164340,-813.70341696,0.00013999,2]
[331150532,1720108164361,-175.48904366,0.00013999,2]
[331150533,1720108164381,-197.59758404,0.00013999,2]
[331150534,1720108164402,-646.03932415,0.00013999,2]
[331150535,1720108164422,-202.14706647,0.00013999,2]
[331150536,1720108164443,-489.14391285,0.00013999,2]
[331150537,1720108164464,-284.05029551,0.00013999,2]
[331150538,1720108164484,-1074.65583716,0.00013999,2]
[331150539,1720108164510,-70305.29942386,0.00014,2]
[331150540,1720108166175,-309.40095364,0.00014,2]
[331150553,1720108228592,155.0,0.00010702,2]
[331150554,1720108228616,519.03,0.00010702,2]
[331150564,1720108233307,-674.03,0.00012966,2]
[331150566,1720108233317,-166.111953,0.00013973,2]
[331150568,1720108233327,-299.42042671,0.00013989,2]
[331150569,1720108233338,-166.56630159,0.00013999,2]
[331150570,1720108233348,-108.23947077,0.00013999,2]
[331150571,1720108233371,-1086.40376285,0.00013999,2]
[331150572,1720108233381,-173.72389627,0.00013999,2]
[331150573,1720108233391,-300.0,0.00013999,2]
[331150574,1720108233400,-1292.67744863,0.00013999,2]
[331150575,1720108233412,-165.10787007,0.00013999,2]
[331150576,1720108233421,-155.0,0.00013999,2]
[331150577,1720108233431,-542.46894464,0.00013999,2]
[331150578,1720108233440,-2669.08318529,0.00014,2]
[331150579,1720108233490,-6310.96790771,0.00014,2]
[331150591,1720108237895,-315.27178378,0.00014,2]
[331150592,1720108237960,-4259.9738215,0.00014,2]
[331150593,1720108237972,-316.47984938,0.00014,2]
[331150594,1720108237983,-313.999999,0.00014,2]
[331150595,1720108237994,-4375.33012854,0.00014,2]
[331150596,1720108238090,-10630.22494532,0.00014,2]
[331150597,1720108238156,-327.84345602,0.00014,2]
[331150600,1720108238458,-6e-08,0.00014,2]
[331150601,1720108238471,-289.965,0.00014,2]
[331150602,1720108238794,-498.02539162,0.00014,2]
[331150604,1720108238806,-292.41486173,0.00014,2]
[331150610,1720108239108,-10851.24474252,0.00014,2]
[331150702,1720108240276,-24929.11631104,0.00014,2]
[331150710,1720108240342,-5753.6,0.00014,2]
[331150724,1720108240463,-469.565,0.00014,2]
[331150726,1720108240475,-1550.1899999,0.00014,2]
[331150729,1720108240487,-574.92905729,0.00014,2]
[331150731,1720108240501,-670.0,0.00014,2]
[331150734,1720108240514,-1707.07094271,0.00014,2]
[331150737,1720108240534,-4003.25429544,0.00014,2]
[331150739,1720108240546,-3523.30826427,0.00014,2]
[331150751,1720108240666,-8036.635,0.00014,2]
[331150759,1720108240733,-683817.67022273,0.00014,2]
[331150762,1720108240756,-23924.93436518,0.00014,2]
[331151103,1720108243346,-628011.25647671,0.00014,2]
[331151124,1720108243480,-3251.95107974,0.00014,2]
[331151126,1720108243492,-11860.70759119,0.00014,2]
[331151132,1720108243546,-5604.72198332,0.00014,2]
[331152140,1720108253925,-2631868.3566312,0.00014,2]
[331152141,1720108253936,-156.84835865,0.00014099,2]
[331152142,1720108253946,-1000.0,0.00014207,2]
[331152143,1720108253955,-773.86,0.00014384,2]
[331152144,1720108253965,-166.111953,0.00014795,2]
[331152145,1720108253975,-3648.75943703,0.00014829,2]
[331152146,1720108253985,-1194.64323356,0.00014895,2]
[331152147,1720108253994,-181.05,0.00014927,2]
[331152148,1720108254003,-231.02921244,0.00014963,2]
[331152149,1720108254013,-150.0,0.00014963,2]
[331152150,1720108254022,-150.0,0.00014963,2]
[331152151,1720108254031,-3969.81959498,0.00015,2]
[331152152,1720108254041,-220760.48368053,0.00015,2]
[331152153,1720108254051,-35742.82117363,0.00015,2]
[331152154,1720108254060,-1301.32466502,0.00015,2]
[331152155,1720108254070,-623.10727104,0.00015,2]
[331152156,1720108254080,-150.0,0.0001505,2]
[331152157,1720108254089,-773.86,0.00015068,2]
[331152158,1720108254099,-300.0,0.00015068,2]
[331152159,1720108254111,-674.03,0.0001523,2]
[331152160,1720108254121,-420.0,0.00015337,2]
[331152161,1720108254130,-671.54,0.0001536,3]
[331152162,1720108254140,-335.76,0.0001536,3]
[331152163,1720108254150,-306.2110273,0.00015412,2]
[331152164,1720108254160,-1500.0,0.00015484,2]
[331152165,1720108254170,-1500.0,0.00015494,2]
[331152167,1720108254180,-250.0,0.0001551,2]
[331152169,1720108254190,-250.0,0.0001551,2]
[331152171,1720108254200,-1500.0,0.00015521,2]
[331152173,1720108254210,-1500.0,0.00015551,2]
[331152175,1720108254220,-1500.0,0.00015569,2]
[331152177,1720108254230,-185.91,0.0001559,2]
[331152179,1720108254240,-354.61960163,0.00015598,2]
[331152181,1720108254251,-1500.0,0.00015606,2]
[331152183,1720108254260,-1500.0,0.0001561,2]
[331152185,1720108254270,-166.111953,0.00015616,2]
[331152187,1720108254279,-276.77600181,0.00015674,2]
[331152189,1720108254290,-1500.0,0.00015681,2]
[331152191,1720108254299,-150.0,0.00015718,2]
[331152193,1720108254309,-150.0,0.00015725,2]
[331152195,1720108254318,-150.0,0.0001573,2]
[331152197,1720108254328,-150.0,0.00015731,2]
[331152199,1720108254337,-150.0,0.00015731,2]
[331152201,1720108254347,-150.0,0.0001574,2]
[331152203,1720108254358,-150.0,0.0001574,2]
[331152205,1720108254368,-150.0,0.00015741,2]
[331152207,1720108254377,-150.0,0.00015746,2]
[331152210,1720108254387,-773.86,0.00015753,2]
[331152212,1720108254397,-150.0,0.00015758,2]
[331152214,1720108254408,-150.0,0.0001576,2]
[331152216,1720108254417,-150.0,0.00015764,2]
[331152218,1720108254427,-150.0,0.00015767,2]
[331152220,1720108254436,-150.0,0.0001577,2]
[331152222,1720108254445,-150.0,0.00015773,2]
[331152224,1720108254455,-3648.75943703,0.00015776,2]
[331152226,1720108254464,-150.0,0.00015777,2]
[331152228,1720108254473,-150.0,0.00015778,2]
[331152230,1720108254483,-150.0,0.00015778,2]
[331152232,1720108254494,-150.0,0.00015779,2]
[331152234,1720108254504,-150.0,0.00015782,2]
[331152236,1720108254514,-1000.0,0.00015786,2]
[331152238,1720108254524,-150.0,0.0001579,2]
[331152240,1720108254534,-1194.64323356,0.00015791,2]
[331152242,1720108254544,-150.0,0.00015793,2]
[331152244,1720108254554,-150.0,0.00015796,2]
[331152246,1720108254563,-150.0,0.00015797,2]
[331152248,1720108254573,-150.0,0.00015799,2]
[331152250,1720108254582,-150.0,0.000158,2]
[331152252,1720108254592,-400.0,0.000158,5]
[331152254,1720108254603,-150.0,0.00015801,2]
[331152256,1720108254613,-150.0,0.00015804,2]
[331152258,1720108254624,-150.0,0.00015807,2]
[331152260,1720108254634,-150.0,0.00015814,2]
[331152262,1720108254643,-150.0,0.00015814,2]
[331152264,1720108254654,-150.0,0.00015818,2]
[331152266,1720108254666,-150.0,0.00015818,2]
[331152268,1720108254680,-150.0,0.00015819,2]
[331152270,1720108254690,-150.0,0.00015824,2]
[331152272,1720108254700,-150.0,0.00015826,2]
[331152274,1720108254710,-150.0,0.00015826,2]
[331152276,1720108254719,-150.0,0.00015827,2]
[331152278,1720108254728,-150.0,0.00015827,2]
[331152280,1720108254738,-150.0,0.00015827,2]
[331152282,1720108254748,-166.71,0.00015831,2]
[331152284,1720108254758,-150.0,0.00015834,2]
[331152286,1720108254768,-200.63708135,0.00015834,2]
[331152288,1720108254778,-150.0,0.00015836,2]
[331152290,1720108254787,-150.0,0.00015839,2]
[331152292,1720108254797,-1031.3470438,0.0001584,2]
[331152294,1720108254806,-2500.0,0.0001584,2]
[331152296,1720108254815,-300.0,0.00015844,2]
[331152298,1720108254825,-150.0,0.00015852,2]
[331152300,1720108254834,-300.0,0.00015858,2]
[331152302,1720108254844,-150.0,0.00015866,2]
[331152304,1720108254855,-150.0,0.00015869,2]
[331152306,1720108254865,-150.0,0.00015877,2]
[331152308,1720108254875,-150.0,0.00015878,2]
[331152310,1720108254884,-150.0,0.00015879,2]
[331152312,1720108254895,-150.0,0.00015883,2]
[331152314,1720108254904,-150.0,0.00015885,2]
[331152316,1720108254914,-150.0,0.00015887,2]
[331152318,1720108254923,-150.0,0.0001589,2]
[331152321,1720108254933,-150.0,0.0001589,2]
[331152323,1720108254943,-150.0,0.0001589,2]
[331152325,1720108254952,-400.0,0.000159,5]
[331152327,1720108254962,-300.0,0.00015902,2]
[331152329,1720108254971,-150.0,0.00015906,2]
[331152331,1720108254980,-300.0,0.00015912,2]
[331152332,1720108254990,-150.0,0.00015916,2]
[331152334,1720108254999,-150.0,0.00015918,2]
[331152337,1720108255009,-150.0,0.00015919,2]
[331152339,1720108255019,-150.0,0.0001592,2]
[331152340,1720108255028,-150.0,0.00015928,2]
[331152342,1720108255038,-150.0,0.00015934,2]
[331152344,1720108255047,-150.0,0.00015939,2]
[331152346,1720108255057,-150.0,0.0001594,2]
[331152348,1720108255066,-150.0,0.00015941,2]
[331152349,1720108255076,-150.0,0.00015942,2]
[331152350,1720108255085,-150.0,0.00015949,2]
[331152351,1720108255098,-150.0,0.00015949,2]
[331152352,1720108255110,-300.0,0.00015952,2]
[331152353,1720108255119,-150.0,0.00015955,2]
[331152354,1720108255128,-150.0,0.00015962,2]
[331152355,1720108255138,-150.0,0.00015964,2]
[331152356,1720108255147,-150.0,0.00015972,2]
[331152357,1720108255156,-150.0,0.00015972,2]
[331152358,1720108255165,-150.0,0.00015973,2]
[331152359,1720108255176,-175.75718941,0.00015977,2]
[331152360,1720108255186,-150.0,0.0001598,2]
[331152361,1720108255195,-150.0,0.00015986,2]
[331152362,1720108255205,-150.0,0.00015986,2]
[331152363,1720108255215,-30593.9504635,0.00015988,2]
[331152364,1720108255224,-2719.3570605,0.00015988,2]
[331152365,1720108255234,-150.0,0.00015989,2]
[331152366,1720108255243,-150.0,0.00015989,2]
[331152367,1720108255253,-150.0,0.00015993,2]
[331152368,1720108255263,-150.0,0.00015997,2]
[331152369,1720108255272,-300.0,0.00015997,2]
[331152370,1720108255282,-209.73197584,0.00015999,2]
[331152371,1720108255291,-5922.04166492,0.00015999,2]
[331152372,1720108255301,-4992349.85459001,0.00016,2]
[331152373,1720108255310,-1006.00125693,0.00016,2]
[331152374,1720108255320,-401.18950093,0.00016058,2]
[331152375,1720108255329,-350.0,0.00016058,2]
[331152376,1720108255339,-6135.52,0.00016116,2]
[331152377,1720108255348,-2500.0,0.0001634,2]
[331152378,1720108255359,-166.111953,0.00016438,2]
[331152379,1720108255368,-773.86,0.00016438,2]
[331152380,1720108255378,-300.0,0.00016438,2]
[331152381,1720108255388,-287.34966633,0.00016453,2]
[331152382,1720108255397,-250.0,0.00016497,2]
[331152383,1720108255407,-300.0,0.00016497,2]
[331152384,1720108255416,-250.0,0.00016521,2]
[331152385,1720108255426,-1759.05412823,0.00016566,2]
[331152386,1720108255435,-450.0,0.00016606,2]
[331152387,1720108255445,-1194.64323356,0.00016687,2]
[331152388,1720108255454,-3648.75943703,0.00016722,2]
[331152389,1720108255463,-151.0,0.00016783,2]
[331152390,1720108255473,-587.0,0.00016802,2]
[331152391,1720108255483,-306.2110273,0.00016878,2]
[331152392,1720108255492,-1055.73847506,0.00016969,2]
[331152393,1720108255502,-1287.66973724,0.00016969,2]
[331152394,1720108255512,-716.55687693,0.00016969,2]
[331152395,1720108255522,-520.7022797,0.00016969,2]
[331152396,1720108255531,-2500.0,0.0001697,2]
[331152397,1720108255541,-2493.91059926,0.00017,2]
[331152398,1720108255550,-500.0,0.00017,2]
[331152399,1720108255559,-412.51328359,0.00017045,2]
[331152400,1720108255569,-181.05,0.0001706,2]
[331152401,1720108255578,-350.0,0.00017069,2]
[331152402,1720108255587,-151.0,0.00017128,2]
[331152403,1720108255671,-166.71,0.00017137,2]
[331152404,1720108255681,-185.50664386,0.00017154,2]
[331152405,1720108255690,-166.111953,0.0001726,2]
[331152406,1720108255701,-185.91,0.00017323,2]
[331152407,1720108255709,-1000.0,0.00017364,2]
[331152408,1720108255719,-1311.0,0.00017446,2]
[331152409,1720108255728,-151.0,0.00017472,2]
[331152410,1720108255738,-674.03,0.00017494,2]
[331152411,1720108255747,-419.07,0.00017546,2]
[331152412,1720108255757,-1194.64323356,0.00017583,2]
[331152413,1720108255766,-2500.0,0.000176,2]
[331152414,1720108255775,-3648.75943703,0.00017668,2]
[331152415,1720108255784,-151.0,0.00017817,2]
[331152416,1720108255793,-500.0,0.00018,2]
[331152417,1720108255802,-371.19076263,0.00018,2]
[331152418,1720108255811,-166.111953,0.00018082,2]
[331152419,1720108255820,-151.0,0.00018162,2]
[331152420,1720108255829,-1074.65583715,0.000182,2]
[331152421,1720108255838,-1457.78531868,0.000182,2]
[331152422,1720108255847,-542.46894464,0.000182,2]
[331152423,1720108255858,-2500.0,0.0001822,2]
[331152424,1720108255867,-306.2110273,0.00018345,2]
[331152425,1720108255876,-823.0,0.00018408,2]
[331152426,1720108255885,-854.2,0.00018419,2]
[331152427,1720108255894,-854.2,0.00018419,2]
[331152428,1720108255903,-854.2,0.00018419,2]
[331152429,1720108255912,-1343.12,0.00018419,2]
[331152430,1720108255921,-854.2,0.00018419,2]
[331152431,1720108255930,-537.5,0.00018419,2]
[331152432,1720108255939,-159.9452446,0.00018432,2]
[331152433,1720108255948,-166.71,0.00018444,2]
[331152434,1720108255957,-1194.64323356,0.00018479,2]
[331152435,1720108255967,-10000.0,0.00018502,2]
[331152436,1720108255975,-1708.4,0.00018505,2]
[331152437,1720108255984,-151.0,0.00018507,2]
[331152438,1720108255993,-3648.75943703,0.00018615,2]
[331152439,1720108256002,-461.90376345,0.00018649,2]
[331152440,1720108256012,-156.97581362,0.00018649,2]
[331152441,1720108256021,-2500.0,0.0001884,2]
[331152442,1720108256032,-170.13,0.00018849,30]
[331152443,1720108256041,-151.0,0.00018852,2]
[331152444,1720108256050,-533.58557093,0.00018899,2]
[331152445,1720108256060,-628.0,0.000189,3]
[331152446,1720108256069,-162.45,0.000189,2]
[331152447,1720108256078,-162.45,0.000189,2]
[331152448,1720108256087,-166.111953,0.00018904,2]
[331152449,1720108256096,-1000.0,0.00018943,2]
[331152450,1720108256108,-500.0,0.00019,2]
[331152451,1720108256117,-5000.0,0.00019,2]
[331152452,1720108256126,-1250.0,0.00019,2]
[331152453,1720108256135,-185.91,0.00019055,2]
[331152454,1720108256144,-331.63513846,0.00019077,2]
[331152455,1720108256153,-530.49341065,0.00019177,2]
[331152456,1720108256163,-238.27870455,0.00019177,2]
[331152457,1720108256172,-155.79648956,0.00019177,2]
[331152458,1720108256181,-447.24,0.00019178,2]
[331152459,1720108256190,-288.09,0.00019178,2]
[331152460,1720108256199,-250.0,0.00019178,2]
[331152461,1720108256208,-181.05,0.00019192,2]
[331152462,1720108256218,-167.57,0.00019192,2]
[331152463,1720108256228,-151.0,0.00019196,2]
[331152464,1720108256237,-691.06526812,0.00019229,2]
[331152465,1720108256246,-255.63531546,0.00019229,2]
[331152466,1720108256255,-227.14852012,0.00019299,2]
[331152467,1720108256264,-1830.0,0.00019321,2]
[331152468,1720108256273,-1275.0,0.00019321,2]
[331152469,1720108256282,-360.0,0.00019321,2]
[331152470,1720108256291,-1658.0,0.00019321,2]
[331152471,1720108256301,-166.0,0.00019321,2]
[331152472,1720108256310,-618.0,0.00019321,2]
[331152473,1720108256319,-813.0,0.00019321,2]
[331152474,1720108256328,-443.0,0.00019321,2]
[331152475,1720108256337,-457.29,0.00019321,2]
[331152476,1720108256346,-150.0,0.00019321,2]
[331152477,1720108256355,-1304.0,0.00019321,2]
[331152478,1720108256364,-2455.0,0.00019321,2]
[331152479,1720108256372,-548.0,0.00019321,2]
[331152480,1720108256381,-175.248,0.00019321,2]
[331152481,1720108256390,-3223.0,0.00019321,2]
[331152482,1720108256399,-1988.0,0.00019321,2]
[331152483,1720108256409,-5176.0,0.00019321,2]
[331152484,1720108256417,-1199.0,0.00019321,2]
[331152485,1720108256426,-291.0,0.00019321,2]
[331152486,1720108256435,-5810.0,0.00019321,2]
[331152487,1720108256444,-1664.0,0.00019321,2]
[331152488,1720108256453,-38235.0,0.00019321,2]
[331152489,1720108256462,-240.15,0.00019321,2]
[331152490,1720108256471,-1070.0,0.00019321,2]
[331152491,1720108256480,-259.684,0.00019321,2]
[331152492,1720108256489,-788.74652378,0.0001935,2]
[331152493,1720108256498,-210.23092299,0.0001935,2]
[331152494,1720108256508,-409.33858096,0.0001935,2]
[331152495,1720108256517,-210.23092299,0.0001935,2]
[331152496,1720108256527,-305.56742136,0.00019352,2]
[331152497,1720108256536,-46058.94607448,0.00019354,2]
[331152498,1720108256545,-296.87186128,0.00019354,2]
[331152499,1720108256554,-1194.64323356,0.00019375,2]
[331152500,1720108256563,-2500.0,0.000195,2]
[331152501,1720108256572,-151.0,0.00019541,2]
[331152502,1720108256581,-3648.75943703,0.00019561,2]
[331152503,1720108256590,-19785.74398718,0.000196,2]
[331152504,1720108256600,-300.0,0.00019666,2]
[331152505,1720108256610,-150.0,0.00019666,2]
[331152506,1720108256620,-166.111953,0.00019726,2]
[331152507,1720108256629,-674.03,0.00019758,2]
[331152508,1720108256639,-15411.86353644,0.00019801,2]
[331152509,1720108256648,-306.2110273,0.00019811,2]
[331152510,1720108256660,-528.0988798,0.00019863,2]
[331152511,1720108256672,-604.77747292,0.00019863,2]
[331152512,1720108256682,-151.0,0.00019886,2]
[331152513,1720108256691,-274090.544079,0.000199,3]
[331152514,1720108256700,-151.0,0.000199,2]
[331152515,1720108256710,-163.115482,0.000199,2]
[331152516,1720108256719,-163.115482,0.000199,2]
[331152517,1720108256728,-151.0,0.000199,2]
[331152518,1720108256737,-2559.57149,0.000199,2]
[331152519,1720108256747,-2559.57149,0.000199,2]
[331152520,1720108256758,-151.0,0.000199,2]
[331152521,1720108256767,-151.0,0.000199,2]
[331152522,1720108256776,-226.891004,0.000199,2]
[331152523,1720108256785,-164.203273,0.000199,2]
[331152524,1720108256794,-181.765078,0.000199,2]